Cogmind - Beta 12 @@@ ROGUE MODE // 2023.07.13 @ 14:23:11 Player: Sara Result: Self-destructed Performance ------------- Evolutions (1) 500 Regions Visited (3) 600 Robots Destroyed (3) 15 Value Destroyed (30) 30 Prototype IDs (2) 40 Alien Tech Used (0) 0 Bonus (0) 0 TOTAL SCORE: 1185 Bonus ------- None Cogmind --------- Core Integrity 326/400 Matter 191/300 Energy 100/100 System Corruption 0% Temperature Cool (0) Movement Flying (195) Ox2 Location -9/Materials Parts ------- > --- POWER (1) -------- (None) > --- PROPULSION (4) --- VTOL Module > --- UTILITY (2) ------ Small Storage Unit > --- WEAPON (2) ------- Autogun Rocket Launcher > --- INVENTORY (8) ---- Improved Ion Engine Light Treads Light Treads EM Pulse Gun Improved Light Cannon Improved Light Cannon Flail Peak State ------------ > --- POWER ------------ Improved Ion Engine > --- PROPULSION ------- VTOL Module VTOL Module > --- UTILITY ---------- Small Storage Unit Weight Redist. System > --- WEAPON ----------- Autogun Flail > --- INVENTORY -------- Improved Ion Engine Light Treads Light Treads EM Pulse Gun Improved Light Cannon Improved Light Cannon Rocket Launcher [Rating: 14] Favorites ----------- Power Improved Ion Engine Engine Improved Ion Engine Propulsion VTOL Module Treads Light Treads Flight Unit VTOL Module Utility Small Storage Unit Device Weight Redist. System Storage Small Storage Unit Weapon Flail Energy Gun EM Pulse Gun Ballistic Gun Assault Rifle Launcher Rocket Launcher Impact Weapon Flail Build | -11 -10 -10 -9 ------- Run | Jun Mat Min Mat Slots Evolved 2 | . . . 2 Power . | . . . . Propulsion 2 | . . . 2 Utility . | . . . . Weapon . | . . . . Parts Attached 20 | 6 12 . 2 Power 5 | 1 4 . . Engine 5 | 1 4 . . Core . | . . . . Reactor . | . . . . Propulsion 6 | 2 4 . . Treads 2 | 2 . . . Leg . | . . . . Wheel . | . . . . Hover . | . . . . Flight 4 | . 4 . . Utility 3 | 1 2 . . Device 1 | . 1 . . Storage 2 | 1 1 . . Processor . | . . . . Hackware . | . . . . Protection . | . . . . Artifact . | . . . . Weapon 6 | 2 2 . 2 Energy Gun 1 | 1 . . . Energy Cannon . | . . . . Ballistic Gun 2 | 1 . . 1 Ballistic Cannon . | . . . . Launcher 1 | . . . 1 Special Weapon . | . . . . Impact Weapon 2 | . 2 . . Slashing Weapon . | . . . . Piercing Weapon . | . . . . Special Melee Weapon . | . . . . Unidentified Prototypes . | . . . . Parts Lost 5 | . 2 . 3 Power 1 | . . . 1 Propulsion 3 | . 2 . 1 Utility 1 | . . . 1 Weapon . | . . . . Highest Loss Streak 3 | . 2 . 3 To Critical Strikes . | . . . . Average Slot Usage (%) 82 | . 88 85 56 Engine 12 | . 14 14 6 Flight 25 | . 26 28 18 Device 12 | . 12 14 7 Storage 13 | . 13 14 11 Energy Gun 4 | . 6 . . Ballistic Gun 5 | . 6 . 9 Impact Weapon 7 | . 7 14 1 Naked Turns . | . . . . Heaviest Build 15 | 14 14 14 15 Greatest Support 40 | 40 40 14 14 Greatest Overweight (x) 4 | . 4 . 1 Average Overweight (x) . | . . . . Largest Inventory Capacity 8 | 8 8 8 8 Average Capacity 7 | 7 7 8 8 Most Carried 8 | 7 8 7 8 Average Carried 6 | 3 7 6 7 Final Capacity 8 | 8 8 8 8 Final Carried 7 | 4 6 7 7 Class Distribution -------------------- 75% | Sprinter 24% | Mutant Dominant Class ---------------- Sprinter | -10/Materials Sprinter | -10/Mines Mutant | -9/Materials Resources | -11 -10 -10 -9 ----------- Run | Jun Mat Min Mat Matter Collected 323 | 210 7 106 . Remotely . | . . . . Salvage Created 47 | . 47 . . Parts 4 | . 4 . . Haulers Intercepted . | . . . . Recyclers Shooed 1 | . 1 . . Parts Field Recycled . | . . . . Retrieved Matter . | . . . . Parts Self-Destructed . | . . . . Prevented . | . . . . Kills | -11 -10 -10 -9 ------- Run | Jun Mat Min Mat Combat Hostiles Destroyed 3 | . 3 . . Guns 1 | . 1 . . AOE 2 | . 2 . . Classes Destroyed 1 | . 1 . . Swarmer 3 | . 3 . . Best Kill Streak 3 | . 3 . . Combat Bots Only 3 | . 3 . . Max Kills in Single Turn 2 | . 2 . . Gunslinging . | . . . . Exploded 2 | . 2 . . Melee . | . . . . Uniques/NPCs Destroyed . | . . . . Combat | -11 -10 -10 -9 -------- Run | Jun Mat Min Mat Damage Taken 738 | . 401 79 258 Core 239 | . 127 38 74 Absorbed by Shields . | . . . . Core Remaining (%) 67 | 100 . 34 . Volleys Fired 11 | . 9 . 2 Largest 2 | . 2 . 2 Hottest 60 | . 60 . 56 Shots Fired 22 | . 18 . 4 Gun 20 | . 18 . 2 Cannon . | . . . . Launcher 2 | . . . 2 Special . | . . . . Kinetic 11 | . 9 . 2 Thermal . | . . . . Explosive 2 | . . . 2 Electromagnetic 9 | . 9 . . Robot Hit Streak 4 | . 4 . . Robot Miss Streak 2 | . 2 . . Penetration Max . | . . . . Secondary Targets . | . . . . Shots Hit Robots 11 | . 11 . . Core Hits 6 | . 2 . 4 Critical Kills . | . . . . Critical Parts Destroyed . | . . . . Critical Strikes . | . . . . Melee Attacks 4 | . 2 2 . Impact 4 | . 2 2 . Slashing . | . . . . Piercing . | . . . . Sneak Attacks . | . . . . Combat Hostiles . | . . . . Follow-up Attacks . | . . . . Damage Inflicted 223 | . 212 . 11 Guns 148 | . 148 . . Cannons . | . . . . Explosions 75 | . 64 . 11 Melee . | . . . . Ramming . | . . . . Kinetic 64 | . 64 . . Thermal 64 | . 64 . . Explosive 11 | . . . 11 Electromagnetic 84 | . 84 . . Impact . | . . . . Slashing . | . . . . Piercing . | . . . . Highest Corruption . | . . . . Average Corruption . | . . . . Corruption Purged . | . . . . Corruption Blocked . | . . . . Overload Shots . | . . . . Overflow Damage 19 | . 19 . . Projectiles . | . . . . Explosions 19 | . 19 . . Melee . | . . . . Knockbacks . | . . . . Impact . | . . . . Kinetic . | . . . . Secondary . | . . . . Self-Inflicted Damage 30 | . 30 . . Shots 1 | . 1 . . Rammed . | . . . . Targets Rammed . | . . . . Kicked . | . . . . Crushed . | . . . . Highest Temperature 56 | . 56 . 2 Average Temperature 16 | . 18 . 1 Received Heat Transfer 231 | . 186 . 45 Siege Activations . | . . . . Robots Corrupted . | . . . . Combat Hostiles . | . . . . Parts Fried . | . . . . Impact Corruptions . | . . . . Robots Melted . | . . . . Combat Hostiles . | . . . . Parts Melted . | . . . . Heat Transferred 100 | . 100 . . Parts Sabotaged . | . . . . Parts Stolen . | . . . . Parts Stripped . | . . . . Power Chain Reactions 1 | . 1 . . Missiles Intercepted . | . . . . Alert | -11 -10 -10 -9 ------- Run | Jun Mat Min Mat Peak Influence 335 | . 335 133 126 Initial 118 | . . 118 51 Average 128 | . 174 120 84 Maximum Alert Level 1 | . 1 . . Low Security (%) 75 | 100 55 100 100 Level 1 24 | . 44 . . Level 2 . | . . . . Level 3 . | . . . . Level 4 . | . . . . Level 5 . | . . . . High Security . | . . . . Max Security . | . . . . Squads Dispatched 8 | . 6 . 2 Investigation 8 | . 6 . 2 Extermination . | . . . . Reinforcement . | . . . . Assault . | . . . . Garrison . | . . . . Intercept . | . . . . Searches Triggered . | . . . . Construction Impeded . | . . . . Haulers Reinforced . | . . . . Active Scanning Responses . | . . . . Cargo Convoy Interrupts . | . . . . Stealth | -11 -10 -10 -9 --------- Run | Jun Mat Min Mat Distress Signals 4 | . 3 . 1 Communications Jammed . | . . . . Distress Signals . | . . . . Times Spotted 44 | . 31 6 7 Peak Tracking Total 11 | . 11 5 7 Tactical Retreats 5 | . 5 . . Traps | -11 -10 -10 -9 ------- Run | Jun Mat Min Mat Traps Triggered 1 | . 1 . . Indirectly . | . . . . Trap Hack Attempts . | . . . . Triggered . | . . . . Disarmed . | . . . . Reprogrammed 6 | . 6 . . Reused . | . . . . Traps Extracted . | . . . . Installed . | . . . . Triggered . | . . . . Machines | -11 -10 -10 -9 ---------- Run | Jun Mat Min Mat Machines Disabled . | . . . . Max in Single Turn . | . . . . Machines Repaired . | . . . . Machines Sabotaged . | . . . . Overloaded Fab Kills . | . . . . Hacking | -11 -10 -10 -9 --------- Run | Jun Mat Min Mat Machines Accessed 11 | . 9 . 2 Terminals 8 | . 7 . 1 Fabricators . | . . . . Repair Stations . | . . . . Recycling Units 3 | . 2 . 1 Scanalyzers . | . . . . Garrison Access . | . . . . Total Hacks 34 | . 29 . 5 Successful 13 | . 12 . 1 Failed 20 | . 16 . 4 Catastrophic 4 | . 2 . 2 Database Lockouts 1 | . 1 . . Manual 15 | . 14 . 1 Terminals 29 | . 25 . 4 Fabricators . | . . . . Repair Stations . | . . . . Recycling Units 5 | . 4 . 1 Scanalyzers . | . . . . Garrison Access . | . . . . Terminal Hacks 9 | . 9 . . Robot Analysis 1 | . 1 . . Prototype ID Bank 1 | . 1 . . Terminal Index 1 | . 1 . . Recycling Unit Index 1 | . 1 . . Unreport Threat 1 | . 1 . . Locate Traps 2 | . 2 . . Reprogram Traps 1 | . 1 . . Registered Components 1 | . 1 . . Fabricator Hacks . | . . . . Repair Station Hacks . | . . . . Recycling Unit Hacks . | . . . . Scanalyzer . | . . . . Garrison Access Hacks . | . . . . Unauthorized Hacks 4 | . 3 . 1 Terminals 1 | . 1 . . Sabotage 1 | . 1 . . Fabricators . | . . . . Repair Stations . | . . . . Recycling Units 3 | . 2 . 1 Tunnel 3 | . 2 . 1 Scanalyzers . | . . . . Garrison Access . | . . . . Data Cores Recovered . | . . . . Used . | . . . . Hacking Detections 8 | . 7 . 1 Full Trace Events 6 | . 5 . 1 Feedback Events . | . . . . Feedback Blocked . | . . . . Robot Schematics Acquired . | . . . . Robots Built . | . . . . Authchips . | . . . . Time . | . . . . Total Robot Build Rating . | . . . . Part Schematics Acquired . | . . . . Parts Built . | . . . . Authchips . | . . . . Time . | . . . . Total Part Build Rating . | . . . . Parts Repaired . | . . . . Time . | . . . . Parts Recycled . | . . . . Recycled Matter . | . . . . Retrieved Matter . | . . . . Retrieved Components . | . . . . Parts Scanalyzed . | . . . . Part Schematics Acquired . | . . . . Parts Damaged . | . . . . Bothacking | -11 -10 -10 -9 ------------ Run | Jun Mat Min Mat Used RIF Installer . | . . . . Robots Hacked . | . . . . Non-combat . | . . . . Combat . | . . . . Robot Hacks Applied . | . . . . Relay Couplers Released . | . . . . Fabnet Peak Effective % . | . . . . Robots Rewired . | . . . . Allies Hacked . | . . . . Hacks Repelled . | . . . . Allies | -11 -10 -10 -9 -------- Run | Jun Mat Min Mat Total Allies . | . . . . Largest Group . | . . . . Highest-Rated Group . | . . . . Highest-Rated Ally . | . . . . Total Orders . | . . . . Ally Attacks . | . . . . Total Damage . | . . . . Kills . | . . . . Allies Corrupted . | . . . . Allies Melted . | . . . . Intel | -11 -10 -10 -9 ------- Run | Jun Mat Min Mat Robot Analysis Total 1 | . 1 . . Derelict Logs Recovered 2 | . . 2 . Drone Launches . | . . . . Drone Recoveries . | . . . . Exploration | -11 -10 -10 -9 ------------- Run | Jun Mat Min Mat Turns Passed 510 | 72 281 92 65 Spaces Moved 938 | 39 609 223 67 Core 5 | 3 2 . . Treads 43 | 36 7 . . Legs . | . . . . Wheels . | . . . . Hover . | . . . . Flight 890 | . 600 223 67 Fastest Speed 32 | 50 32 32 32 Average Speed 42 | 151 34 32 82 Slowest Speed 275 | 160 275 32 115 Overloaded Moves . | . . . . Propulsion Burnouts . | . . . . Robots Hopped 17 | . 17 . . Cave-ins Triggered . | . . . . Exploration Rate (%) 38 | 4 91 46 12 Regions Visited 3 Branch Regions 1 Pre-discovered Areas 3 | . 2 . 1 Known Exits Taken . | . . . . Unknown Exits Taken 3 | 1 1 1 . Scrap Searched 2 | . . 2 . Spaces Dug 1 | . 1 . . Terrain Destroyed 17 | . 5 . 12 Melee 1 | . 1 . . Projectile . | . . . . AOE 16 | . 4 . 12 Terrain Rammed . | . . . . Walls Destroyed . | . . . . Machines Disabled . | . . . . Actions | -11 -10 -10 -9 --------- Run | Jun Mat Min Mat Total 1002 | 51 640 239 72 Wait 22 | . 8 14 . Move 904 | 38 577 222 67 Hop 14 | . 14 . . Pick Up 16 | 7 8 1 . Fast Attach 10 | 3 6 . 1 Attach 6 | 3 2 . 1 Detach 2 | . 1 . 1 Swap 4 | . 4 . . Drop 9 | . 9 . . Fire 11 | . 9 . 2 Melee 4 | . 2 2 . Ram . | . . . . Kick . | . . . . Crush . | . . . . Escape Stasis . | . . . . Rewire . | . . . . Trap . | . . . . Miscellaneous . | . . . . Route ------- -11/Junkyard -10/Materials (discovered 4 exits: *Mat x2 / [*Min x2]) -10/Mines -9/Materials (discovered 2 exits: Mat x2) History --------- Turn | Location | Event 4 | -11/Junkyard | Discovered new exit (range 15) 73 | -11/Junkyard | Entered Materials 163 | -10/Materials | Discovered new exit (range 7) 197 | -10/Materials | Discovered new exit (range 8) 200 | -10/Materials | Central database locked down 252 | -10/Materials | Discovered new exit (range 13) 277 | -10/Materials | Discovered new exit (range 8) 336 | -10/Materials | Core integrity fell below 50% 354 | -10/Materials | Entered Mines 375 | -10/Mines | Received a Rocket Launcher from a helpful Derelict 388 | -10/Mines | Build established: Sprinter 405 | -10/Mines | Learned Materials emergency access door positions 409 | -10/Mines | Learned location of 2 exits from Materials 420 | -10/Mines | Discovered new exit (range 8) 446 | -10/Mines | Entered Materials 446 | -9/Materials | Evolved 2 slots: Propulsion x2 447 | -9/Materials | Identified exit to Materials 511 | -9/Materials | Self-destructed Last Messages --------------- LOCATION=UNKNOWN GOAL=ESCAPE Loading 2 Materials exits... 00451_ Acquired Autogun. 00456_ Connecting with Terminal... 00456_ Current location identified: Materials 00456_ ALERT: Suspicious activity at Terminal M003. Dispatching Investigation squad. 00471_ Connecting with Recycling Unit... >>Force(Tunnel) DISCOVERED[-5/Factory] 00471_ ALERT: Suspicious activity at Recycling Unit M001. Dispatching Investigation squad. 00481_ K-01 Serf collects debris. 00481_ W-16 Scout sends out distress signal. 00488_ K-01 Serf destroyed. 00488_ Imp. Ion Engine destroyed. 00491_ S-10 Pest destroyed. 00491_ VTOL Module destroyed. 00492_ Weight Redist. System destroyed. Map ----- +----------------------------------------------------+ | ??????????????????????????????????????????? | | ??????????????????????????????????????????? | | ??????????????????????????????????????????? | | ??????????????????????????????????????????? | | ??????????????????????????????????????????? | | ??????????????????????????????????????????? | | ??????????????????????????????????????????? | | ??????????????????????????????????????????? | | ??????????????????????????????????????????? | | ??????????????????????????????????????????? | | ??????????????????????????????????????????? | | ??????????????????????????????????????????? | | ??????????????????????????????????????????? | | ??????????????????????????????????????????? | | ??????????????????????????????????????????? | | ??????????????????????????????????????????? | | ??????????????????????????????????????????? | | ??????????????????????????????????????????? | | ??????????????????????????????????????????? | | ??????????????????????????????????????????? | | ??????????????????????????????????????????? | | ????#######???????????????????????????????? | | ????? #####????????????????????????? | | ???????"" #????????????????????????? | | ???????""" ##########???????????????? | | ???????""" s@ +???????????????? | | ???????""" Y##########???????????????? | | ???????"" #????????????????????????? | | ????? ##???######???????????????? | | ???? ?# #?? [[ #???????????????? | | ?????####???# # [[ #???????????????? | | ???########## + [ #???????????????? | | ???# # !# #???????????????? | | ???# """ # %#?? #???????????????? | | ???# """ # *#???? #???????????????? | | ???# """ # #??????####???????????????? | | ???# + ###########???????????????? | | ???# """ # %= #???????????? | | ???# """ # ######### ????????? | | ???# """ # #?????????????????????????? | | ???# # #?????????????????????????? | | ?############ #?????????????????????????? | | ?# # #?????????????????????????? | | ??# """ # #?????????????????????????? | | ??# "Y" # #?????????????????????????? | | ??# + #?????????????????????????? | | ??# # #?????????????????????????? | | ??# """ # #?????????????????????????? | | ??# """ # #?????????????????????????? | | ??? """ # #?????????????????????????? | +----------------------------------------------------+ Best States ------------- Heat Dissipation 28 Energy Generation 12 Energy Capacity 265 Matter Stores 250 Matter Capacity 300 Sight Range 16 Terrain Scan Density 10 Additional Mass Support 6 Evasion (%) 63 Recoil Reduction 2 Item Schematics ----------------- None Robot Schematics ------------------ None Fabricated ------------ Nothing Alien Tech Used ----------------- None Achievements -------------- None Challenges ------------ None Game ------ Seed FocalContainmentStabilizer Manual? 0 Play Time 00:14:00 Cumulative 118.1 hours Start 2023.07.13 @ 14:10:11 End 2023.07.13 @ 14:23:11 Sessions 1 Manual Loads 0 Difficulty Rogue Special Mode None Game No. 166 Rogue 166 Adventurer 0 Explorer 0 Win Type - Total 1 Types 1/0/0/0/0/0/0/0/0 Lore% 61 Gallery% 59 Achievement% 51 Wizard Run 0 Options --------- ASCII 0 Keyboard 0 Movement Numpad Keybinds 0 Fullscreen 1 Font 18/X11Bold Map View 76x50 Tactical HUD 1 Map Filters NONE Filters NONE Steam 1 RUN: eeaf8a6d-79ac-4091-bc32-00a47f96e5c0